[Event "FIDE WSCC 50 2022"]
[Site "Assisi"]
[Date "2022.11.24"]
[Round "9.12"]
[White "Zeller, Frank"]
[Black "Wempe, Juergen"]
[Result "1-0"]
[ECO "C41"]
[WhiteElo "2359"]
[BlackElo "2177"]
[Annotator "TA"]
[PlyCount "65"]
[EventDate "2022.11.14"]
[EventType "swiss"]
[EventCountry "ITA"]
[SourceTitle "playchess.com"]
[Source "ChessBase"]
[SourceQuality "1"]
[TimeControl "40/5400+30:1800+30"]

{[%evp 16,65,25,25,21,19,23,33,54,46,31,38,40,36,35,45,75,58,138,139,168,104,108,106,97,22,33,0,27,25,23,4,9,0,0,0,0,0,0,0,341,321,395,119,382,371,1080,1054,1302,1224,29995,29996]} 1. e4 {[%emt 0:00:08]} d6 {[%emt 0:00:12]} 2. d4 {[%emt 0:00:20]} Nf6 {[%emt 0:00:07]} 3. Nc3 {[%emt 0:00:12]} e5 {[%emt 0:00:08]} 4. Nf3 {[%emt 0:00:23]} Nbd7 {[%emt 0:00:11]} 5. Bc4 {[%emt 0:00:34]} Be7 {[%emt 0:00:08]} 6. O-O {[%emt 0:00:19]} O-O {[%emt 0:00:05]} 7. Re1 {[%emt 0:00:09]} c6 {[%emt 0:00:46]} 8. a4 {[%emt 0:00:15]} a5 {[%emt 0:00:39]} 9. h3 {[%emt 0:01:18]} Nb6 {[%emt 1:32:44] 9...Nb6 is better than 9...exd4. C41: Philidor Defence.} 10. Ba2 {[%emt 0:05:19]} Nfd7 {[%emt 0:00:00]} 11. Be3 {[%emt 0:01:01]} Bf6 {[%emt 0:00:00] [#] White is slightly better.} 12. Re2 $146 {[%emt 0:18:57]} ({Predecessor:} 12. Qd2 exd4 13. Bxd4 Ne5 14. Nxe5 dxe5 15. Be3 Qxd2 16. Bxd2 Be7 17. Be3 Nd7 18. Red1 {½-½ (30) Arenas Vanegas,D (2449)-Strikovic,A (2507) Las Palmas 2018}) 12... exd4 {[%emt 0:00:00]} 13. Bxd4 {[%emt 0:02:37]} Ne5 {[%emt 0:00:00]} 14. Nxe5 {[%emt 0:12:28]} Bxe5 {[%emt 0:00:00]} 15. Rd2 {[%emt 0:01:10] Strongly threatening Bxe5.} Bf4 {[%emt 0:00:00]} 16. Rd3 {[%emt 0:01:38]} Be6 {[%emt 0:00:00]} (16... Nd7 $1 $14) 17. Qf3 $16 {[%emt 0:15:46]} Bh6 {[%emt 0:00:00] [#]} 18. Bxe6 {[%emt 0:02:47]} ({White should try} 18. Qh5 $1 $18 {aiming for Rg3.} Re8 19. Rg3) 18... fxe6 {[%emt 0:00:00]} 19. Qg4 {[%emt 0:00:07]} Re8 {[%emt 0:00:00]} 20. Re1 {[%emt 0:02:26] White is much more active.} ({White should play} 20. Rg3 $16 {[%cal Rd4g7]} g6 21. Rd1) 20... Nd7 $11 {[%emt 0:00:00]} 21. Ne2 {[%emt 0:06:26][%cal Bc3e2,Be2g3,Bg3h5][%mdl 32]} Qe7 {[%emt 0:00:00]} (21... e5 $5 {[%cal Re5d4]} 22. Be3 Bxe3 23. Rxe3 Nc5 $11) 22. Ng3 {[%emt 0:00:47]} Rf8 {[%emt 0:00:00]} 23. Qd1 {[%emt 0:02:49]} (23. Red1 {with more complications.} Rad8 24. Nh5 Rf7 25. e5) 23... Bf4 {[%emt 0:00:00]} (23... Rf7 {simplifies} 24. Rf3 Raf8 25. Rxf7 Qxf7 26. Qe2 Bg5) 24. Nh5 {[%emt 0:03:09]} Be5 {[%emt 0:00:00]} (24... e5 25. Bc3 $16) 25. Bxe5 {[%emt 0:10:39]} Nxe5 {[%emt 0:00:00]} 26. Rxd6 {[%emt 0:00:21][%cal Bd3d6,Bd6d7,Bd7g7][%mdl 32]} Qh4 {[%emt 0:00:00]} 27. f4 {[%emt 0:00:44]} Nc4 {[%emt 0:00:00][%mdl 8192]} (27... Nf3+ $1 $11 {and Black is okay.} 28. Qxf3 (28. gxf3 Qxh5 29. Kg2 Qh4 $11) 28... Qxe1+ 29. Kh2 g6) 28. Rd7 $18 {[%emt 0:02:59]} ({Not} 28. Rxe6 Rad8 29. Qe2 Rd2 $16) 28... Rad8 {[%emt 0:00:00]} 29. Rxg7+ $40 {[%emt 0:04:27][%mdl 128] White goes for the king.} Kh8 {[%emt 0:00:00] This costs Black the game.} 30. Qe2 {[%emt 0:00:38] Rg4 is the strong threat.} Rd2 $2 {[%emt 0:00:00]} (30... Nd2 31. Rd1 (31. Rxb7 Nf3+ 32. gxf3 Qxh5 $16) 31... Nxe4 32. Rxd8 Qxd8 33. Qxe4 Qd1+ 34. Kh2 Qxh5) 31. Qxc4 {[%emt 0:00:10][%cal Oc4c5] Hoping for Qc5!} Qxe1+ {[%emt 0:00:00] [#]} 32. Kh2 $1 {[%emt 0:00:01]} Qxe4 {[%emt 0:00:00]} 33. Qxe4 {[%emt 0:00:12] Weighted Error Value: White=0.13 (very precise) /Black=0.72} 1-0

[Event "FIDE WSCC 50 2022"]
[Site "Assisi"]
[Date "2022.11.24"]
[Round "9.13"]
[White "Cummings, David H."]
[Black "de Francesco, Klaus"]
[Result "1/2-1/2"]
[ECO "A28"]
[WhiteElo "2318"]
[BlackElo "2171"]
[Annotator "TA"]
[PlyCount "44"]
[EventDate "2022.11.14"]
[EventType "swiss"]
[EventCountry "ITA"]
[SourceTitle "playchess.com"]
[Source "ChessBase"]
[SourceQuality "1"]
[TimeControl "40/5400+30:1800+30"]

{[%evp 9,44,11,7,6,10,10,10,7,6,8,12,11,16,7,31,25,34,18,31,34,42,21,47,-10,-18,-16,-25,-13,0,-24,-26,-24,-23,-23,-16,-17,-16]} 1. c4 {[%emt 0:00:09]} e5 {[%emt 0:00:09]} 2. Nc3 {[%emt 0:00:09]} Nf6 {[%emt 0:00:07]} 3. Nf3 {[%emt 0:00:19]} Nc6 {[%emt 0:00:07]} 4. e4 {[%emt 0:00:10]} Bb4 {[%emt 0:00:14][%cal Bf8b4,Bb4c5,Bc5b6][%mdl 32]} 5. d3 {[%emt 0:00:08]} d6 {[%emt 0:00:26]} 6. a3 {[%emt 0:00:16] A28: English Opening: Four Knights Variation.} Bc5 {[%emt 0:00:16]} 7. b4 {[%emt 0:00:17]} Bb6 {[%emt 0:00:24]} 8. Be3 {[%emt 0:00:53]} Bg4 $1 {[%emt 0:01:40][%mdl 4] is currently scoring better than 8...0-0.} 9. Be2 {[%emt 0:00:33]} Bxf3 {[%emt 0:00:48]} 10. Bxf3 {[%emt 0:00:08]} Nd4 {[%emt 0:02:46]} 11. Na4 {[%emt 0:01:35]} c6 {[%emt 0:01:07]} 12. Nxb6 {[%emt 0:00:31]} Qxb6 {[%emt 0:00:32]} 13. O-O {[%emt 0:01:25]} O-O {[%emt 0:00:14] [#]} 14. Rb1 $146 {[%emt 0:07:23]} ({Predecessor:} 14. Qd2 d5 15. Bxd4 Qxd4 16. exd5 e4 17. Be2 cxd5 18. Rad1 dxc4 19. dxc4 Qe5 20. Qd4 {½-½ (42) Raahul,V (2323)-Aditya,M (2496) Abu Dhabi 2022}) 14... h6 {[%emt 0:03:36]} 15. g3 {[%emt 0:02:31]} (15. a4 {simplifies} Qc7 16. Bxd4 exd4 17. g3) 15... d5 {[%emt 0:07:12]} 16. c5 {[%emt 0:23:44]} (16. exd5 $14 cxd5 17. Bg2 (17. Bxd5 Nxd5 18. cxd5 Rfd8 $15) (17. cxd5 Rac8 $11)) 16... Nxf3+ $11 {[%emt 0:01:22]} 17. Qxf3 {[%emt 0:00:05]} Qd8 {[%emt 0:00:08]} 18. Rfd1 {[%emt 0:01:54]} a6 {[%emt 0:02:42]} 19. g4 {[%emt 0:06:31]} (19. Bd2 $5) 19... Qd7 {[%emt 0:04:42]} 20. h3 {[%emt 0:06:22][%cal Oe3h6]} Qe6 {[%emt 0:01:02]} 21. Qf5 {[%emt 0:04:55]} dxe4 {[%emt 0:02:48]} 22. dxe4 {[%emt 0:07:42]} Qxf5 {[%emt 0:00:41] Weighted Error Value: White=0.11 (very precise) /Black=0.06 (flawless)} 1/2-1/2

[Event "FIDE WSCC 50 2022"]
[Site "Assisi"]
[Date "2022.11.24"]
[Round "9.14"]
[White "Meessen, Rudolf"]
[Black "Rocha, Sergio"]
[Result "0-1"]
[ECO "A04"]
[WhiteElo "2158"]
[BlackElo "2316"]
[Annotator "TA"]
[PlyCount "92"]
[EventDate "2022.11.14"]
[EventType "swiss"]
[EventCountry "ITA"]
[SourceTitle "playchess.com"]
[Source "ChessBase"]
[SourceQuality "1"]
[TimeControl "40/5400+30:1800+30"]

{[%evp 13,92,12,20,10,8,15,33,22,31,30,35,17,47,46,60,50,51,41,43,33,22,20,36,6,43,30,16,-4,24,16,18,-7,0,-11,-10,-113,-93,-122,-71,-89,-88,-169,-139,-170,-66,-65,-43,-41,219,89,89,-41,-36,-75,-75,-75,-75,-82,-72,-109,-82,-144,-168,-174,-194,-246,-190,-408,-245,-237,-220,-303,-300,-547,-526,-537,-530,-2634,-2147,-2417,-2107]} 1. e4 {[%emt 0:01:49]} c5 {[%emt 0:00:44]} 2. d3 {[%emt 0:00:15]} Nc6 {[%emt 0:00:25]} 3. g3 {[%emt 0:00:47]} g6 {[%emt 0:00:43]} 4. Bg2 {[%emt 0:00:06]} Bg7 {[%emt 0:00:05]} 5. Nf3 {[%emt 0:00:41]} d6 {[%emt 0:00:24]} 6. O-O {[%emt 0:00:18]} e6 {[%emt 0:00:08]} 7. c3 {[%emt 0:02:04]} Nge7 {[%emt 0:00:40]} 8. a4 {[%emt 0:00:30] 8.d4 gains popularity. A04: Unusual lines after 1 Nf3 and King's Indian Attack.} b6 {[%emt 0:02:38]} 9. Re1 {[%emt 0:03:30] [#]} d5 $146 {[%emt 0:05:58]} ({Predecessor:} 9... O-O 10. Na3 Ba6 11. Be3 Qd7 12. d4 cxd4 13. Nxd4 Nxd4 14. Bxd4 e5 15. Be3 Rad8 {1-0 (42) Riff,J (2235)-Roos,J (2307) France 2003}) 10. Na3 {[%emt 0:02:49] White is slightly better.} h6 {[%emt 0:01:08]} 11. h4 {[%emt 0:03:59]} Bb7 {[%emt 0:02:44]} 12. e5 {[%emt 0:02:10]} a6 {[%emt 0:00:25]} 13. d4 {[%emt 0:00:16]} cxd4 {[%emt 0:07:37]} 14. cxd4 {[%emt 0:02:38]} Nf5 {[%emt 0:00:18]} 15. Bh3 {[%emt 0:02:48]} O-O {[%emt 0:04:16]} 16. Bxf5 {[%emt 0:00:26]} exf5 {[%emt 0:00:17]} 17. Bf4 {[%emt 0:03:29]} Re8 {[%emt 0:01:52][%cal Bf8e8,Be8c8,Bc8c4][%mdl 32]} 18. b4 {[%emt 0:00:13][%cal Bb2b4,Bb4b5][%mdl 32]} (18. Qd2 $5 {[%cal Rf4h6]}) 18... Qd7 {[%emt 0:01:48]} (18... Nxb4 19. Qd2 Nc6 20. Bxh6 $16) 19. Qd2 {[%emt 0:00:36]} Kh7 {[%emt 0:00:54]} 20. b5 {[%emt 0:04:26]} Nd8 {[%emt 0:00:39]} 21. Qd3 {[%emt 0:00:27]} Ne6 {[%emt 0:00:45]} 22. Bd2 {[%emt 0:00:13][%cal Oh4h5]} Rec8 {[%emt 0:06:20][%cal Oc8c4]} 23. Kh2 {[%emt 0:07:18]} Rc4 {[%emt 0:02:37]} 24. a5 {[%emt 0:22:34]} (24. Nxc4 $2 dxc4 25. Qe3 axb5 26. axb5 Rxa1 27. Rxa1 Bxf3 28. Qxf3 Nxd4 $17) (24. bxa6 $11 Bxa6 25. Nb5 (25. Nxc4 dxc4 26. Qe3 Bb7 $15)) 24... axb5 $17 {[%emt 0:03:31][%cal Ob6a5] White must now prevent ...bxa5!} 25. axb6 {[%emt 0:02:31] [#]} Ra6 {[%emt 0:07:57]} 26. Nc2 {[%emt 0:14:51]} (26. Nxc4 $2 dxc4 27. Qe3 Rxb6 $19) 26... Rxb6 {[%emt 0:01:26]} 27. Nb4 {[%emt 0:01:14]} (27. h5 $17 {was called for.}) 27... Bf8 {[%emt 0:04:05]} 28. Reb1 {[%emt 0:00:04]} Bc6 {[%emt 0:00:56]} (28... f4 $19 29. Ra7 (29. gxf4 $2 {loses.} Bxb4 30. Rxb4 Rxb4 $19) 29... Kg8) 29. h5 $1 $15 {[%emt 0:01:18]} Rb8 {[%emt 0:01:57]} 30. Ra6 {[%emt 0:04:27]} Nc7 $2 {[%emt 0:24:57][%mdl 8192] [#]} (30... Bb7 $15 {stays ahead.} 31. Rb6 Rd8) 31. hxg6+ {[%emt 0:00:56]} (31. e6 $1 $18 {and the rest is easy.} Qxe6 32. Rxc6 Rxc6 33. Re1) 31... fxg6 $16 {[%emt 0:00:05] [#] Threatens to win with ...Bxb4.} 32. Ra7 {[%emt 0:01:31]} (32. e6 $1 $16 {[%cal Re6d7]} Qxe6 33. Rxc6 Rxc6 34. Nxc6 Qxc6 35. Rc1) 32... Rb7 $36 {[%emt 0:00:27][%mdl 2048] Black has some pressure.} 33. Rxb7 {[%emt 0:02:26]} Bxb7 {[%emt 0:00:04]} 34. Nc2 {[%emt 0:00:46]} Ne6 {[%emt 0:01:51]} 35. Ne3 {[%emt 0:00:33]} Bg7 {[%emt 0:01:29]} 36. Ra1 {[%emt 0:02:39]} Bc6 {[%emt 0:00:39][%cal Ob5b4]} 37. Ra6 {[%emt 0:02:11] Against b4} (37. Nc2 $142) 37... Ra4 $17 {[%emt 0:00:36]} 38. Rxa4 {[%emt 0:00:41]} bxa4 {[%emt 0:00:04]} 39. Nh4 {[%emt 0:02:04]} (39. Bc1 $142) 39... Qe8 {[%emt 0:04:51]} 40. g4 $2 {[%emt 0:03:58]} (40. Bc1 {was worth a try.}) 40... fxg4 {[%emt 0:04:34]} 41. Nxg4 {[%emt 0:30:10][%cal Od2h6]} Qf7 {[%emt 0:35:29]} 42. Kg3 {[%emt 0:01:06]} h5 {[%emt 0:00:00] Prevents f4. Chess con chili.} 43. Nh2 {[%emt 0:00:00]} (43. Nf6+ Bxf6 44. exf6) 43... Bh6 $19 {[%emt 0:00:00] Black is clearly winning.} ({Not} 43... a3 44. Qxa3 Nxd4 45. N2f3 Nxf3 46. Nxf3 $17) 44. Bxh6 {[%emt 0:00:00]} Kxh6 {[%emt 0:00:00]} 45. N2f3 {[%emt 0:00:00]} Qf4+ {[%emt 0:00:00]} 46. Kg2 {[%emt 0:00:00] [#]} Qxh4 $3 {[%emt 0:00:00][%mdl 512] Weighted Error Value: White=0.65/Black=0.27 (precise)} 0-1

[Event "FIDE WSCC 50 2022"]
[Site "Assisi"]
[Date "2022.11.24"]
[Round "9.15"]
[White "Arkell, Keith C"]
[Black "Plotkin, Victor"]
[Result "1-0"]
[ECO "A34"]
[WhiteElo "2408"]
[BlackElo "2290"]
[Annotator "TA"]
[PlyCount "61"]
[EventDate "2022.11.14"]
[EventType "swiss"]
[EventCountry "ITA"]
[SourceTitle "playchess.com"]
[Source "ChessBase"]
[SourceQuality "1"]
[TimeControl "40/5400+30:1800+30"]

{[%evp 9,61,15,28,18,27,25,28,20,18,6,32,19,39,12,5,-3,0,0,0,-11,-10,-11,10,0,0,0,299,16,0,0,-11,-32,-30,-48,0,0,0,0,0,0,216,159,364,360,950,932,1576,1523,1321,1515,1475,1427,6648,3046]} 1. c4 {[%emt 0:00:11]} c5 {[%emt 0:01:00]} 2. Nc3 {[%emt 0:00:05]} Nf6 {[%emt 0:00:15]} 3. g3 {[%emt 0:00:06]} Nc6 {[%emt 0:00:21]} 4. Bg2 {[%emt 0:00:05]} d6 {[%emt 0:01:27]} 5. Nf3 {[%emt 0:00:08]} e5 {[%emt 0:01:49]} 6. d3 {[%emt 0:00:00] A34: Symmetrical English: 2 Nc3, lines with ...d5.} h6 {[%emt 0:02:51]} 7. a3 {[%emt 0:00:00]} Be7 {[%emt 0:00:52]} 8. O-O {[%emt 0:00:00][%cal Ob2b4] White has an edge.} O-O {[%emt 0:00:19]} 9. Rb1 {[%emt 0:00:00]} a5 {[%emt 0:03:15]} 10. Ne1 {[%emt 0:00:30]} Bg4 {[%emt 0:16:28]} 11. h3 {[%emt 0:01:28] [#]} Be6 $146 {[%emt 0:03:41]} ({Predecessor:} 11... Bd7 12. Nc2 Qc8 13. Kh2 Nd4 14. b4 Bc6 15. Nd5 Nxd5 16. cxd5 Ba4 17. Qd2 Nxc2 18. bxc5 {0-1 (27) Tolmacheva,E (1930)-Rozhnev,G (2264) Dimitrovgrad 2009}) 12. Nd5 {[%emt 0:00:07]} Rb8 {[%emt 0:13:05]} 13. Bd2 {[%emt 0:04:52]} Qd7 {[%emt 0:02:15]} 14. Kh2 {[%emt 0:00:08]} b5 {[%emt 0:02:21]} 15. Nc2 {[%emt 0:05:03]} Rfc8 {[%emt 0:05:33]} 16. Nce3 {[%emt 0:00:18]} Bd8 {[%emt 0:03:19]} 17. f4 {[%emt 0:03:05]} bxc4 $2 {[%emt 0:09:50][%mdl 8192]} (17... exf4 $11 {and Black stays safe.} 18. Nxf4 (18. Rxf4 Ne5 $11) 18... Nd4) 18. dxc4 $2 {[%emt 0:00:55]} (18. Nxf6+ $1 $18 Bxf6 19. f5 (19. dxc4 exf4 20. gxf4 Nd4 $15)) 18... exf4 $11 {[%emt 0:01:01]} 19. gxf4 {[%emt 0:00:28] Black must now prevent Nxf6+.} Nd4 {[%emt 0:01:33]} 20. Bc3 {[%emt 0:01:38]} Qe8 {[%emt 0:13:40]} 21. Qd3 {[%emt 0:08:31]} Nxd5 {[%emt 0:01:16]} (21... Rb3 $15 {feels stronger.}) 22. Bxd5 {[%emt 0:02:16]} Bxd5 {[%emt 0:00:25]} 23. cxd5 {[%emt 0:00:36]} Rb3 {[%emt 0:08:52]} 24. Rf2 {[%emt 0:01:40]} h5 $2 {[%emt 0:02:28]} (24... Nb5 $1 $11 25. Rc1 a4) 25. Nf5 {[%emt 0:06:34][%cal Be3f5,Bf5g7,Bg7h5][%mdl 32]} Qd7 $2 {[%emt 0:02:33] [#] This costs Black the game.} (25... Rcb8 $16) 26. Nxg7 $1 $18 {[%emt 0:00:14]} (26. Nxd4 $2 {perishes.} cxd4 27. Qxd4 {[#]} Rcxc3 $1 {[%mdl 512]} 28. bxc3 Rxb1 $19) 26... Bf6 $2 {[%emt 0:02:05]} (26... Bh4 $2 27. Rg2 Kh8 28. Nxh5 $18) (26... Kxg7 27. Bxd4+ cxd4 28. Qxb3 Qf5) 27. Nxh5 {[%emt 0:04:23] White is clearly winning.} Bh8 {[%emt 0:00:00]} 28. Rg1+ {[%emt 0:01:13]} Kf8 {[%emt 0:00:03]} 29. Rfg2 {[%emt 0:00:49] aiming for Qe4.} Ke7 {[%emt 0:00:46]} 30. Qe4+ {[%emt 0:00:24]} Kd8 {[%emt 0:00:14]} 31. Bxa5+ {[%emt 0:00:07] Weighted Error Value: White=0.21 (precise) /Black=0.56} 1-0